[Event "Early-Titled-Tuesday-Blitz-August-29-2023"]
[Site "Chess.com"]
[Date "2023.08.29"]
[Round "4"]
[White "druskacik"]
[Black "joppie2"]
[Result "0-1"]
[WhiteElo "2684"]
[BlackElo "2942"]
[TimeControl "180+1"]
[EndTime "8:37:26 PDT"]
[Termination "joppie2 won by resignation"]

1. e4 {[%clk 0:02:59.2]} 1... c5 {[%clk 0:02:59.8]} 2. Nf3 {[%clk 0:02:58.2]}
2... d6 {[%clk 0:03:00.7]} 3. d4 {[%clk 0:02:57.5]} 3... cxd4 {[%clk 0:03:01.6]}
4. Qxd4 {[%clk 0:02:57.2]} 4... Nf6 {[%clk 0:03:02.3]} 5. Bg5 {[%clk 0:02:57.1]}
5... Nc6 {[%clk 0:02:58.4]} 6. Qe3 {[%clk 0:02:56.8]} 6... Ng4 {[%clk
0:02:54.1]} 7. Qd2 {[%clk 0:02:55.5]} 7... h6 {[%clk 0:02:52.9]} 8. Bh4 {[%clk
0:02:54.7]} 8... g5 {[%clk 0:02:38.2]} 9. Bg3 {[%clk 0:02:54.4]} 9... Bg7 {[%clk
0:02:38.9]} 10. Nc3 {[%clk 0:02:54.4]} 10... Qa5 {[%clk 0:02:34.8]} 11. Bd3
{[%clk 0:02:47.5]} 11... Be6 {[%clk 0:02:30.4]} 12. O-O {[%clk 0:02:25.2]} 12...
Bxc3 {[%clk 0:02:29.2]} 13. bxc3 {[%clk 0:02:14.7]} 13... Nce5 {[%clk
0:02:29.6]} 14. Nd4 {[%clk 0:02:09.1]} 14... Bd7 {[%clk 0:02:27.8]} 15. Rab1
{[%clk 0:02:01.6]} 15... b6 {[%clk 0:02:25.2]} 16. f4 {[%clk 0:01:29.2]} 16...
gxf4 {[%clk 0:02:24.3]} 17. Qxf4 {[%clk 0:01:29.1]} 17... f6 {[%clk 0:02:15.3]}
18. Nf5 {[%clk 0:01:17.8]} 18... Bxf5 {[%clk 0:02:13.3]} 19. Qxf5 {[%clk
0:01:06.8]} 19... h5 {[%clk 0:02:04.8]} 20. Bb5+ {[%clk 0:00:53.7]} 20... Kd8
{[%clk 0:02:03.9]} 21. Bxe5 {[%clk 0:00:37.6]} 21... Nxe5 {[%clk 0:02:03.8]} 22.
a4 {[%clk 0:00:37.2]} 22... a6 {[%clk 0:02:03.9]} 23. Bd3 {[%clk 0:00:31.8]}
23... h4 {[%clk 0:02:01.4]} 24. Qe6 {[%clk 0:00:27.4]} 24... h3 {[%clk
0:01:59.5]} 25. Rb4 {[%clk 0:00:15.9]} 25... Qc5+ {[%clk 0:01:58.5]} 26. Rd4
{[%clk 0:00:14.6]} 26... hxg2 {[%clk 0:01:59.4]} 27. Rxf6 {[%clk 0:00:14.5]}
27... exf6 {[%clk 0:01:56.7]} 28. Qxf6+ {[%clk 0:00:15.4]} 28... Kc7 {[%clk
0:01:56.5]} 29. Qg7+ {[%clk 0:00:11.9]} 29... Kc6 {[%clk 0:01:53.4]} 30. Qg3
{[%clk 0:00:02.8]} 30... Rag8 {[%clk 0:01:49.9]} 0-1

[Event "Early-Titled-Tuesday-Blitz-August-29-2023"]
[Site "Chess.com"]
[Date "2023.08.29"]
[Round "4"]
[White "GM4life"]
[Black "Vuk2000"]
[Result "0-1"]
[WhiteElo "2513"]
[BlackElo "2743"]
[TimeControl "180+1"]
[EndTime "8:37:28 PDT"]
[Termination "Vuk2000 won by resignation"]

1. d4 {[%clk 0:03:00.9]} 1... Nf6 {[%clk 0:02:59.9]} 2. c4 {[%clk 0:03:00.6]}
2... e6 {[%clk 0:03:00.5]} 3. Nf3 {[%clk 0:02:59.5]} 3... b6 {[%clk 0:03:00.6]}
4. e3 {[%clk 0:02:58.9]} 4... Bb7 {[%clk 0:03:00.5]} 5. Bd3 {[%clk 0:02:59.6]}
5... d5 {[%clk 0:03:00.6]} 6. O-O {[%clk 0:03:00.3]} 6... Bd6 {[%clk 0:03:00.3]}
7. Nc3 {[%clk 0:02:57.2]} 7... O-O {[%clk 0:03:00.6]} 8. Qe2 {[%clk 0:02:49.6]}
8... dxc4 {[%clk 0:02:47.9]} 9. Bxc4 {[%clk 0:02:50.5]} 9... Nbd7 {[%clk
0:02:47.6]} 10. b3 {[%clk 0:02:44.7]} 10... a6 {[%clk 0:02:45.1]} 11. a4 {[%clk
0:02:42.8]} 11... Qe7 {[%clk 0:02:43.4]} 12. Bb2 {[%clk 0:02:43.1]} 12... e5
{[%clk 0:02:40.8]} 13. dxe5 {[%clk 0:02:42.4]} 13... Nxe5 {[%clk 0:02:25.4]} 14.
Nxe5 {[%clk 0:02:41.8]} 14... Qxe5 {[%clk 0:02:13.9]} 15. f4 {[%clk 0:02:35.3]}
15... Qe7 {[%clk 0:02:13.9]} 16. Rae1 {[%clk 0:02:28.5]} 16... Rfe8 {[%clk
0:01:37.6]} 17. Bd3 {[%clk 0:02:21.9]} 17... Ba3 {[%clk 0:01:21.3]} 18. Ba1
{[%clk 0:02:18.5]} 18... Bc5 {[%clk 0:01:21.9]} 19. Kh1 {[%clk 0:02:13]} 19...
Bxe3 {[%clk 0:01:17.7]} 20. Qc2 {[%clk 0:02:09.2]} 20... Qc5 {[%clk 0:01:07.5]}
21. Re2 {[%clk 0:01:34.7]} 21... Qh5 {[%clk 0:01:03.5]} 22. Nd1 {[%clk
0:01:28.6]} 22... Ng4 {[%clk 0:01:03.3]} 23. Bxh7+ {[%clk 0:01:20.6]} 23... Kh8
{[%clk 0:00:38.5]} 0-1

[Event "Early-Titled-Tuesday-Blitz-August-29-2023"]
[Site "Chess.com"]
[Date "2023.08.29"]
[Round "4"]
[White "ATM622"]
[Black "tylityli"]
[Result "1-0"]
[WhiteElo "2507"]
[BlackElo "2341"]
[TimeControl "180+1"]
[EndTime "8:37:30 PDT"]
[Termination "ATM622 won on time"]

1. d4 {[%clk 0:03:00.9]} 1... Nf6 {[%clk 0:01:55.9]} 2. c4 {[%clk 0:02:58.4]}
2... e6 {[%clk 0:01:54.2]} 3. g3 {[%clk 0:02:58.8]} 3... Bb4+ {[%clk 0:01:36.8]}
4. Nd2 {[%clk 0:02:57.5]} 4... Nc6 {[%clk 0:01:22.4]} 5. Nf3 {[%clk 0:02:55.4]}
5... d6 {[%clk 0:01:21.7]} 6. Bg2 {[%clk 0:02:55.4]} 6... Qe7 {[%clk 0:01:22.4]}
7. O-O {[%clk 0:02:55.4]} 7... Bxd2 {[%clk 0:01:22.7]} 8. Bxd2 {[%clk
0:02:54.5]} 8... Ne4 {[%clk 0:01:23.3]} 9. Qc2 {[%clk 0:02:53.6]} 9... Nxd2
{[%clk 0:01:22.7]} 10. Qxd2 {[%clk 0:02:54.5]} 10... e5 {[%clk 0:01:22.5]} 11.
d5 {[%clk 0:02:53.7]} 11... Nb8 {[%clk 0:01:22.2]} 12. e4 {[%clk 0:02:53.7]}
12... a5 {[%clk 0:01:20.3]} 13. Nh4 {[%clk 0:02:50.1]} 13... Na6 {[%clk
0:01:17]} 14. f4 {[%clk 0:02:44.5]} 14... exf4 {[%clk 0:01:16.4]} 15. Rxf4
{[%clk 0:02:44.6]} 15... f6 {[%clk 0:00:43.3]} 16. Nf5 {[%clk 0:02:41.6]} 16...
Bxf5 {[%clk 0:00:42.7]} 17. exf5 {[%clk 0:02:41.7]} 17... O-O {[%clk 0:00:37.4]}
18. Re1 {[%clk 0:02:40.7]} 18... Qd7 {[%clk 0:00:34.1]} 19. Re6 {[%clk
0:02:36.8]} 19... Nc5 {[%clk 0:00:33.3]} 20. b3 {[%clk 0:02:26.9]} 20... Rae8
{[%clk 0:00:18.4]} 21. Qe3 {[%clk 0:02:23.5]} 21... Nxe6 {[%clk 0:00:12]} 22.
dxe6 {[%clk 0:02:23.7]} 22... Qc8 {[%clk 0:00:11.8]} 23. e7 {[%clk 0:02:15.8]}
23... Rf7 {[%clk 0:00:11.2]} 24. Bd5 {[%clk 0:02:16]} 24... c6 {[%clk
0:00:09.5]} 25. Be6 {[%clk 0:02:00.6]} 25... Rxe7 {[%clk 0:00:05.2]} 26. Re4
{[%clk 0:01:54.3]} 26... Qe8 {[%clk 0:00:03.1]} 27. Qd4 {[%clk 0:01:47.2]} 27...
Rxe6 {[%clk 0:00:02.8]} 28. Rxe6 {[%clk 0:01:47]} 28... Re7 {[%clk 0:00:03.2]}
29. Qxd6 {[%clk 0:01:47]} 29... Rxe6 {[%clk 0:00:02.8]} 30. fxe6 {[%clk
0:01:47.9]} 1-0

[Event "Early-Titled-Tuesday-Blitz-August-29-2023"]
[Site "Chess.com"]
[Date "2023.08.29"]
[Round "4"]
[White "jcreyes69"]
[Black "Cheer_Down"]
[Result "1-0"]
[WhiteElo "2394"]
[BlackElo "2509"]
[TimeControl "180+1"]
[EndTime "8:37:40 PDT"]
[Termination "jcreyes69 won by resignation"]

1. e4 {[%clk 0:03:00.9]} 1... e5 {[%clk 0:02:56.9]} 2. Nf3 {[%clk 0:03:00.6]}
2... Nc6 {[%clk 0:02:57]} 3. Bb5 {[%clk 0:03:01.2]} 3... a6 {[%clk 0:02:56.2]}
4. Bxc6 {[%clk 0:03:01.3]} 4... dxc6 {[%clk 0:02:55.6]} 5. O-O {[%clk
0:03:01.9]} 5... Qf6 {[%clk 0:02:54.9]} 6. d4 {[%clk 0:03:01.4]} 6... exd4
{[%clk 0:02:53.9]} 7. Bg5 {[%clk 0:03:01.6]} 7... Qd6 {[%clk 0:02:53.1]} 8. Nxd4
{[%clk 0:03:01.9]} 8... Be7 {[%clk 0:02:49.3]} 9. Bxe7 {[%clk 0:02:54.4]} 9...
Nxe7 {[%clk 0:02:48.7]} 10. Nc3 {[%clk 0:02:54.5]} 10... Bd7 {[%clk 0:02:42.4]}
11. Nb3 {[%clk 0:02:45.5]} 11... O-O-O {[%clk 0:02:40.2]} 12. Qe2 {[%clk
0:02:38.2]} 12... g5 {[%clk 0:02:29.7]} 13. Na5 {[%clk 0:02:37]} 13... Kb8
{[%clk 0:02:18.1]} 14. b4 {[%clk 0:02:25.3]} 14... Qxb4 {[%clk 0:02:11.7]} 15.
Nxb7 {[%clk 0:02:24.3]} 15... Qxc3 {[%clk 0:02:08.4]} 16. Qxa6 {[%clk
0:02:13.9]} 16... Nc8 {[%clk 0:01:24.3]} 17. Rab1 {[%clk 0:01:29]} 17... Nb6
{[%clk 0:01:23.2]} 18. Nd6 {[%clk 0:00:51.6]} 18... Bc8 {[%clk 0:01:11.9]} 19.
Rxb6+ {[%clk 0:00:50.8]} 19... cxb6 {[%clk 0:01:12.1]} 20. Qxb6+ {[%clk
0:00:51.7]} 20... Ka8 {[%clk 0:01:12.2]} 21. Rb1 {[%clk 0:00:52.3]} 21... Qe1+
{[%clk 0:00:33.8]} 22. Rxe1 {[%clk 0:00:50.4]} 22... Rxd6 {[%clk 0:00:34.7]} 23.
Rb1 {[%clk 0:00:45.5]} 1-0

[Event "Early-Titled-Tuesday-Blitz-August-29-2023"]
[Site "Chess.com"]
[Date "2023.08.29"]
[Round "4"]
[White "AradNazari"]
[Black "tetrix83"]
[Result "1-0"]
[WhiteElo "2766"]
[BlackElo "2527"]
[TimeControl "180+1"]
[EndTime "8:37:43 PDT"]
[Termination "AradNazari won on time"]

1. e4 {[%clk 0:03:00.9]} 1... e5 {[%clk 0:02:58.8]} 2. f4 {[%clk 0:03:00]} 2...
d5 {[%clk 0:02:57.6]} 3. exd5 {[%clk 0:03:00.1]} 3... exf4 {[%clk 0:02:51.5]} 4.
Nf3 {[%clk 0:03:00.2]} 4... Nf6 {[%clk 0:02:48.6]} 5. Bb5+ {[%clk 0:03:00.2]}
5... c6 {[%clk 0:02:48.4]} 6. dxc6 {[%clk 0:03:00.1]} 6... Nxc6 {[%clk
0:02:49.1]} 7. Nc3 {[%clk 0:03:00.5]} 7... Bd6 {[%clk 0:02:42]} 8. Qe2+ {[%clk
0:03:00.5]} 8... Be6 {[%clk 0:02:36.6]} 9. Nd4 {[%clk 0:03:01]} 9... O-O {[%clk
0:02:31.2]} 10. Nxe6 {[%clk 0:03:00.9]} 10... fxe6 {[%clk 0:02:28.6]} 11. Bxc6
{[%clk 0:03:01.4]} 11... bxc6 {[%clk 0:02:28.4]} 12. b3 {[%clk 0:03:02.1]} 12...
e5 {[%clk 0:02:22.2]} 13. Bb2 {[%clk 0:03:02.1]} 13... e4 {[%clk 0:02:18.5]} 14.
O-O-O {[%clk 0:03:02.1]} 14... Re8 {[%clk 0:02:17.6]} 15. Rhe1 {[%clk
0:02:55.1]} 15... Kh8 {[%clk 0:02:10.9]} 16. Qc4 {[%clk 0:02:54.6]} 16... Qe7
{[%clk 0:02:09.2]} 17. Re2 {[%clk 0:02:45.2]} 17... Ba3 {[%clk 0:01:29.8]} 18.
Rde1 {[%clk 0:02:38.9]} 18... Bxb2+ {[%clk 0:01:28.2]} 19. Kxb2 {[%clk
0:02:39.8]} 19... Qe5 {[%clk 0:01:28.2]} 20. Kb1 {[%clk 0:02:23.3]} 20... Qh5
{[%clk 0:00:14.8]} 21. Nxe4 {[%clk 0:02:17.6]} 21... Nxe4 {[%clk 0:00:10.1]} 22.
Rxe4 {[%clk 0:02:14.2]} 22... Rxe4 {[%clk 0:00:10.1]} 23. Rxe4 {[%clk
0:02:14.8]} 23... Qxh2 {[%clk 0:00:10.1]} 24. Qxc6 {[%clk 0:02:15.2]} 24... Rg8
{[%clk 0:00:07.8]} 25. Re8 {[%clk 0:02:09.2]} 25... Qg1+ {[%clk 0:00:05.9]} 26.
Kb2 {[%clk 0:02:04.5]} 26... Qd4+ {[%clk 0:00:06.4]} 27. Ka3 {[%clk 0:02:04.8]}
27... h6 {[%clk 0:00:04.4]} 28. Rxg8+ {[%clk 0:01:59.8]} 28... Kxg8 {[%clk
0:00:05.3]} 29. Qc8+ {[%clk 0:01:59.5]} 29... Kh7 {[%clk 0:00:05.4]} 30. Qf5+
{[%clk 0:01:59.9]} 30... Kg8 {[%clk 0:00:06]} 31. d3 {[%clk 0:01:56.9]} 31...
Qd6+ {[%clk 0:00:05.5]} 32. b4 {[%clk 0:01:53.5]} 32... Qd4 {[%clk 0:00:05.2]}
33. Kb3 {[%clk 0:01:52.4]} 33... g5 {[%clk 0:00:05.1]} 34. Qg6+ {[%clk
0:01:51.7]} 34... Kf8 {[%clk 0:00:04]} 35. Qxh6+ {[%clk 0:01:51.9]} 35... Ke8
{[%clk 0:00:04.7]} 36. Qxg5 {[%clk 0:01:50.9]} 1-0

[Event "Early-Titled-Tuesday-Blitz-August-29-2023"]
[Site "Chess.com"]
[Date "2023.08.29"]
[Round "4"]
[White "cristiano78"]
[Black "rikchessmx"]
[Result "0-1"]
[WhiteElo "2224"]
[BlackElo "2447"]
[TimeControl "180+1"]
[EndTime "8:37:43 PDT"]
[Termination "rikchessmx won by resignation"]

1. d4 {[%clk 0:03:00.9]} 1... Nf6 {[%clk 0:02:52.7]} 2. c3 {[%clk 0:03:00.4]}
2... e6 {[%clk 0:02:53.1]} 3. Nf3 {[%clk 0:03:00.1]} 3... b6 {[%clk 0:02:52.8]}
4. Bf4 {[%clk 0:02:59.4]} 4... Bb7 {[%clk 0:02:53.2]} 5. e3 {[%clk 0:02:59.3]}
5... Bd6 {[%clk 0:02:52.6]} 6. Bxd6 {[%clk 0:02:58.5]} 6... cxd6 {[%clk
0:02:52.4]} 7. Nbd2 {[%clk 0:02:59.2]} 7... d5 {[%clk 0:02:50.9]} 8. c4 {[%clk
0:02:56]} 8... dxc4 {[%clk 0:02:50.7]} 9. Nxc4 {[%clk 0:02:55.3]} 9... O-O
{[%clk 0:02:51.2]} 10. Nd6 {[%clk 0:02:54.3]} 10... Bc6 {[%clk 0:02:51]} 11. Rc1
{[%clk 0:02:52.2]} 11... Qe7 {[%clk 0:02:50.6]} 12. Nc4 {[%clk 0:02:50.1]} 12...
Ne4 {[%clk 0:02:45.2]} 13. Be2 {[%clk 0:02:48.3]} 13... Qb4+ {[%clk 0:02:44.5]}
14. Nfd2 {[%clk 0:02:43.1]} 14... b5 {[%clk 0:02:43.4]} 15. a3 {[%clk
0:02:41.1]} 15... Qe7 {[%clk 0:02:32.7]} 16. Ne5 {[%clk 0:02:39.2]} 16... Nxd2
{[%clk 0:02:31.5]} 17. Nxc6 {[%clk 0:02:38]} 17... Nxc6 {[%clk 0:02:30.7]} 18.
Qxd2 {[%clk 0:02:37.5]} 18... a6 {[%clk 0:02:30.5]} 19. Bf3 {[%clk 0:02:36.3]}
19... Rac8 {[%clk 0:02:30]} 20. O-O {[%clk 0:02:35.6]} 20... d5 {[%clk
0:02:29.6]} 21. Rc2 {[%clk 0:02:34.1]} 21... Na7 {[%clk 0:02:27]} 22. Rfc1
{[%clk 0:02:34.4]} 22... Qb7 {[%clk 0:02:26.3]} 23. g3 {[%clk 0:02:28.8]} 23...
f5 {[%clk 0:02:12.3]} 24. b4 {[%clk 0:02:25.2]} 24... Rxc2 {[%clk 0:02:09.4]}
25. Rxc2 {[%clk 0:02:24.5]} 25... Rc8 {[%clk 0:02:08.9]} 26. Qc1 {[%clk
0:02:22.4]} 26... Rxc2 {[%clk 0:02:08.4]} 27. Qxc2 {[%clk 0:02:22.9]} 27... Qc6
{[%clk 0:02:06.7]} 28. Qxc6 {[%clk 0:02:14.7]} 28... Nxc6 {[%clk 0:02:06.2]} 29.
Kf1 {[%clk 0:02:15.2]} 29... Na7 {[%clk 0:02:02.6]} 30. Ke2 {[%clk 0:02:14.5]}
30... Nc8 {[%clk 0:02:02.6]} 31. Kd2 {[%clk 0:02:12.5]} 31... Nb6 {[%clk
0:02:02.2]} 32. Be2 {[%clk 0:02:13.1]} 32... Kf7 {[%clk 0:02:01.1]} 33. Kc3
{[%clk 0:02:12.6]} 33... Ke7 {[%clk 0:01:54.6]} 34. f3 {[%clk 0:02:11.1]} 34...
Kd6 {[%clk 0:01:53.9]} 35. Bd3 {[%clk 0:02:10.2]} 35... Kc6 {[%clk 0:01:51.8]}
36. e4 {[%clk 0:02:09.1]} 36... g6 {[%clk 0:01:51.7]} 37. e5 {[%clk 0:01:58]}
37... Na4+ {[%clk 0:01:37.5]} 38. Kb3 {[%clk 0:01:55.7]} 38... Kb6 {[%clk
0:01:36.6]} 39. f4 {[%clk 0:01:52.5]} 39... Kc6 {[%clk 0:01:35.6]} 40. h3 {[%clk
0:01:48.7]} 40... Nb6 {[%clk 0:01:35.3]} 41. Kc3 {[%clk 0:01:47.4]} 41... Nc4
{[%clk 0:01:35.3]} 42. Bxc4 {[%clk 0:01:41.3]} 42... dxc4 {[%clk 0:01:35.1]} 43.
Kc2 {[%clk 0:01:24.5]} 43... Kd5 {[%clk 0:01:33.5]} 44. Kc3 {[%clk 0:01:24.2]}
44... h5 {[%clk 0:01:32.2]} 45. h4 {[%clk 0:01:03.7]} 45... Ke4 {[%clk
0:01:32.1]} 46. a4 {[%clk 0:01:02]} 46... Kd5 {[%clk 0:01:31.6]} 47. axb5 {[%clk
0:00:57.8]} 47... axb5 {[%clk 0:01:31.4]} 0-1

[Event "Early-Titled-Tuesday-Blitz-August-29-2023"]
[Site "Chess.com"]
[Date "2023.08.29"]
[Round "4"]
[White "Angry_Twin"]
[Black "AnujShrivatri21"]
[Result "1-0"]
[WhiteElo "2967"]
[BlackElo "2826"]
[TimeControl "180+1"]
[EndTime "8:37:52 PDT"]
[Termination "Angry_Twin won by resignation"]

1. e4 {[%clk 0:02:59.6]} 1... e6 {[%clk 0:02:55.5]} 2. d4 {[%clk 0:02:58.1]}
2... d5 {[%clk 0:02:55.6]} 3. Nd2 {[%clk 0:02:59]} 3... c5 {[%clk 0:02:51.6]} 4.
exd5 {[%clk 0:02:59.4]} 4... Qxd5 {[%clk 0:02:52.5]} 5. Ngf3 {[%clk 0:02:59.6]}
5... cxd4 {[%clk 0:02:52.6]} 6. Bc4 {[%clk 0:03:00.3]} 6... Qd7 {[%clk
0:02:52.9]} 7. O-O {[%clk 0:03:00]} 7... Nc6 {[%clk 0:02:53.5]} 8. Nb3 {[%clk
0:03:00.2]} 8... a6 {[%clk 0:02:53.5]} 9. Nbxd4 {[%clk 0:03:00.2]} 9... Nxd4
{[%clk 0:02:54.4]} 10. Nxd4 {[%clk 0:03:00.4]} 10... Nf6 {[%clk 0:02:54.9]} 11.
c3 {[%clk 0:03:00.1]} 11... b5 {[%clk 0:02:54.4]} 12. Bb3 {[%clk 0:02:59.5]}
12... Bb7 {[%clk 0:02:45.5]} 13. Re1 {[%clk 0:02:59.4]} 13... Bc5 {[%clk
0:02:11.2]} 14. Be3 {[%clk 0:02:55.1]} 14... Rc8 {[%clk 0:01:49.5]} 15. Nxe6
{[%clk 0:02:09.1]} 15... fxe6 {[%clk 0:01:36.9]} 16. Bxe6 {[%clk 0:02:05.2]}
16... Qc6 {[%clk 0:00:40]} 17. Qf3 {[%clk 0:01:09.8]} 17... Qxe6 {[%clk
0:00:19.8]} 18. Qxb7 {[%clk 0:01:08]} 18... O-O {[%clk 0:00:07.9]} 19. Bxc5
{[%clk 0:01:07.1]} 1-0

[Event "Early-Titled-Tuesday-Blitz-August-29-2023"]
[Site "Chess.com"]
[Date "2023.08.29"]
[Round "4"]
[White "ShiroglanTalibov"]
[Black "zabivol_mc"]
[Result "1-0"]
[WhiteElo "2815"]
[BlackElo "2555"]
[TimeControl "180+1"]
[EndTime "8:37:52 PDT"]
[Termination "ShiroglanTalibov won by resignation"]

1. e4 {[%clk 0:03:00.9]} 1... e5 {[%clk 0:02:57.2]} 2. Nf3 {[%clk 0:03:00.2]}
2... Nc6 {[%clk 0:02:56.4]} 3. Bb5 {[%clk 0:03:00.1]} 3... a6 {[%clk 0:02:56.1]}
4. Ba4 {[%clk 0:03:00.4]} 4... Nge7 {[%clk 0:02:55]} 5. Nc3 {[%clk 0:02:58.7]}
5... Ng6 {[%clk 0:02:53.7]} 6. h4 {[%clk 0:02:52.3]} 6... d6 {[%clk 0:02:33.6]}
7. d4 {[%clk 0:02:43.9]} 7... exd4 {[%clk 0:02:32.5]} 8. Nxd4 {[%clk 0:02:44.3]}
8... Bd7 {[%clk 0:02:32.8]} 9. h5 {[%clk 0:02:43.6]} 9... Nge5 {[%clk
0:02:23.6]} 10. Nf5 {[%clk 0:02:36.5]} 10... Bxf5 {[%clk 0:02:20.9]} 11. exf5
{[%clk 0:02:37.4]} 11... h6 {[%clk 0:02:13.3]} 12. Nd5 {[%clk 0:02:36.4]} 12...
Qd7 {[%clk 0:02:06.4]} 13. f4 {[%clk 0:02:33.9]} 13... b5 {[%clk 0:01:36.3]} 14.
Bb3 {[%clk 0:02:29.9]} 14... Nc4 {[%clk 0:01:36.2]} 15. Qe2+ {[%clk 0:02:27.4]}
15... Kd8 {[%clk 0:01:34.5]} 16. Bxc4 {[%clk 0:02:17.5]} 16... bxc4 {[%clk
0:01:35.4]} 17. Qxc4 {[%clk 0:02:18]} 17... Be7 {[%clk 0:01:35.5]} 18. Bd2
{[%clk 0:02:14.4]} 18... Rb8 {[%clk 0:01:27.3]} 19. Bc3 {[%clk 0:02:11.4]} 19...
f6 {[%clk 0:01:15]} 20. O-O-O {[%clk 0:02:06]} 20... Re8 {[%clk 0:01:14.1]} 21.
Rhe1 {[%clk 0:02:02.3]} 21... a5 {[%clk 0:01:12.7]} 22. g4 {[%clk 0:01:52.9]}
22... Nb4 {[%clk 0:00:53.8]} 23. Bxb4 {[%clk 0:01:39.8]} 23... axb4 {[%clk
0:00:54.7]} 24. Nxb4 {[%clk 0:01:40.5]} 24... Rb6 {[%clk 0:00:51]} 25. Nd5
{[%clk 0:01:38.2]} 25... Rb8 {[%clk 0:00:45]} 26. a4 {[%clk 0:01:35.5]} 26... c6
{[%clk 0:00:30.6]} 27. Nxe7 {[%clk 0:01:28.2]} 27... Rxe7 {[%clk 0:00:31.5]} 28.
Re6 {[%clk 0:01:28.3]} 28... d5 {[%clk 0:00:21.9]} 29. Qxc6 {[%clk 0:01:27.7]}
29... Qxc6 {[%clk 0:00:16.3]} 30. Rxc6 {[%clk 0:01:28.6]} 30... Re4 {[%clk
0:00:16.8]} 31. Rxd5+ {[%clk 0:01:28.3]} 31... Ke8 {[%clk 0:00:17.4]} 32. Re6+
{[%clk 0:01:27.7]} 32... Rxe6 {[%clk 0:00:17.3]} 33. fxe6 {[%clk 0:01:28.6]}
33... Rb4 {[%clk 0:00:17.7]} 34. b3 {[%clk 0:01:26.2]} 34... Rxf4 {[%clk
0:00:17.7]} 35. a5 {[%clk 0:01:26.1]} 35... Rxg4 {[%clk 0:00:16.9]} 36. a6
{[%clk 0:01:26.5]} 1-0

[Event "Early-Titled-Tuesday-Blitz-August-29-2023"]
[Site "Chess.com"]
[Date "2023.08.29"]
[Round "4"]
[White "Cherneevo_23"]
[Black "Fh2411"]
[Result "0-1"]
[WhiteElo "2419"]
[BlackElo "2652"]
[TimeControl "180+1"]
[EndTime "8:37:58 PDT"]
[Termination "Fh2411 won on time"]

1. Nf3 {[%clk 0:03:00.9]} 1... Nf6 {[%clk 0:02:56.8]} 2. c4 {[%clk 0:03:00.4]}
2... e6 {[%clk 0:02:56.7]} 3. Nc3 {[%clk 0:02:59.9]} 3... d5 {[%clk 0:02:56.1]}
4. d4 {[%clk 0:02:59.5]} 4... Bb4 {[%clk 0:02:56.1]} 5. Bg5 {[%clk 0:02:58.5]}
5... h6 {[%clk 0:02:56.4]} 6. Bxf6 {[%clk 0:02:58]} 6... Qxf6 {[%clk 0:02:57.3]}
7. e3 {[%clk 0:02:57.9]} 7... O-O {[%clk 0:02:57.3]} 8. Bd3 {[%clk 0:02:56]}
8... Rd8 {[%clk 0:02:49.9]} 9. O-O {[%clk 0:02:52.3]} 9... c5 {[%clk 0:02:42.9]}
10. cxd5 {[%clk 0:02:49.9]} 10... Bxc3 {[%clk 0:02:42.6]} 11. bxc3 {[%clk
0:02:49]} 11... exd5 {[%clk 0:02:42]} 12. Ne5 {[%clk 0:02:08.7]} 12... Nc6
{[%clk 0:02:40.2]} 13. f4 {[%clk 0:02:05.2]} 13... b6 {[%clk 0:02:09.5]} 14. Qa4
{[%clk 0:01:57.6]} 14... Ne7 {[%clk 0:02:03]} 15. Rae1 {[%clk 0:01:52.7]} 15...
Bf5 {[%clk 0:02:01.5]} 16. Bxf5 {[%clk 0:01:14.1]} 16... Nxf5 {[%clk 0:02:00.2]}
17. Qc6 {[%clk 0:01:03.1]} 17... Qxc6 {[%clk 0:01:53.5]} 18. Nxc6 {[%clk
0:01:01.2]} 18... Re8 {[%clk 0:01:54.4]} 19. Rf3 {[%clk 0:00:54]} 19... Re6
{[%clk 0:01:45]} 20. Ne5 {[%clk 0:00:50.8]} 20... f6 {[%clk 0:01:42.7]} 21. Ng4
{[%clk 0:00:48.1]} 21... cxd4 {[%clk 0:01:36.9]} 22. cxd4 {[%clk 0:00:47.1]}
22... Nxd4 {[%clk 0:01:37.2]} 23. Rf2 {[%clk 0:00:45.8]} 23... Nf5 {[%clk
0:01:20.4]} 24. Rd2 {[%clk 0:00:43.1]} 24... Ne7 {[%clk 0:01:08.5]} 0-1

[Event "Early-Titled-Tuesday-Blitz-August-29-2023"]
[Site "Chess.com"]
[Date "2023.08.29"]
[Round "4"]
[White "Mr_November18"]
[Black "Mmukka"]
[Result "0-1"]
[WhiteElo "1896"]
[BlackElo "2437"]
[TimeControl "180+1"]
[EndTime "8:38:01 PDT"]
[Termination "Mmukka won on time"]

1. e4 {[%clk 0:02:16]} 1... c5 {[%clk 0:02:59.5]} 2. d4 {[%clk 0:02:12.6]} 2...
cxd4 {[%clk 0:02:54.1]} 3. c3 {[%clk 0:02:12.9]} 3... d5 {[%clk 0:02:54.2]} 4.
exd5 {[%clk 0:02:12.7]} 4... Qxd5 {[%clk 0:02:55.1]} 5. cxd4 {[%clk 0:02:13.2]}
5... Nc6 {[%clk 0:02:54.2]} 6. Nf3 {[%clk 0:02:13.6]} 6... e6 {[%clk 0:02:49.4]}
7. Nc3 {[%clk 0:02:13.5]} 7... Qd6 {[%clk 0:02:49.2]} 8. Be2 {[%clk 0:02:03.1]}
8... Nf6 {[%clk 0:02:48.9]} 9. O-O {[%clk 0:02:02.7]} 9... Be7 {[%clk
0:02:48.5]} 10. Nb5 {[%clk 0:01:55.3]} 10... Qd8 {[%clk 0:02:32.4]} 11. Bf4
{[%clk 0:01:50.1]} 11... Nd5 {[%clk 0:02:31.8]} 12. Bg3 {[%clk 0:01:48.5]} 12...
O-O {[%clk 0:02:31.9]} 13. Bc4 {[%clk 0:01:36.4]} 13... a6 {[%clk 0:02:14.9]}
14. Bxd5 {[%clk 0:01:22.6]} 14... axb5 {[%clk 0:01:52]} 15. Be4 {[%clk
0:01:16.1]} 15... Bf6 {[%clk 0:01:50.9]} 16. Ne5 {[%clk 0:00:45.5]} 16... Nxd4
{[%clk 0:01:41.3]} 17. Qd3 {[%clk 0:00:44.9]} 17... Nf5 {[%clk 0:01:38.1]} 18.
Bxf5 {[%clk 0:00:40.1]} 18... exf5 {[%clk 0:01:36.7]} 19. Qxb5 {[%clk
0:00:38.5]} 19... Ra5 {[%clk 0:01:30.1]} 20. Qe2 {[%clk 0:00:32.4]} 20... Bxe5
{[%clk 0:01:26.3]} 21. Bxe5 {[%clk 0:00:23.2]} 21... Re8 {[%clk 0:01:26.2]} 22.
f4 {[%clk 0:00:22.7]} 22... f6 {[%clk 0:01:24.5]} 23. Qc4+ {[%clk 0:00:20.1]}
23... Be6 {[%clk 0:01:23.5]} 24. Qb4 {[%clk 0:00:15.9]} 24... fxe5 {[%clk
0:01:23]} 25. fxe5 {[%clk 0:00:16]} 25... Rxe5 {[%clk 0:01:22.3]} 26. Rad1
{[%clk 0:00:16.3]} 26... Bd5 {[%clk 0:01:20.9]} 27. Qd4 {[%clk 0:00:10.2]} 27...
Qg5 {[%clk 0:01:19.1]} 28. g3 {[%clk 0:00:03.3]} 28... Bc6 {[%clk 0:01:16.3]}
29. Qc4+ {[%clk 0:00:02.8]} 29... Kh8 {[%clk 0:01:15.9]} 0-1